bitfinex/quotes_SOLUSD_20241028
["timestamp","ask_amount","ask_price","bid_price","bid_amount"]
[1730134536998,5.7323,174.45,174.38,23.48759787]
[1730134537228,20.0,174.44,174.38,0.78579087]
[1730134537499,17.75309787,174.42,174.38,0.78579087]
[1730134537696,17.75309787,174.4,174.38,0.78579087]
[1730134538402,23.48669787,174.41,174.38,0.78579087]
[1730134541207,5.7336,174.41,174.38,0.78579087]
[1730134541505,23.48669787,174.41,174.38,0.78579087]
[1730134543490,5.7336,174.41,174.38,0.78579087]
[1730134544612,23.48669787,174.41,174.38,0.78579087]
[1730134544906,5.7336,174.41,174.38,0.78579087]
[1730134545492,23.48669787,174.41,174.38,0.78579087]
[1730134546116,17.75309787,174.39,174.38,0.78579087]
[1730134546285,17.75309787,174.39,174.34,20.0754]
[1730134546286,17.75309787,174.39,174.34,14.3396]
[1730134546486,17.75309787,174.39,174.34,32.09269787]
[1730134547310,23.48759787,174.39,174.34,32.09269787]
[1730134547509,17.75309787,174.37,174.32,17.75309787]
[1730134547720,5.7345,174.39,174.31,15.12842599]
[1730134547721,17.75309787,174.36,174.31,15.12842599]
[1730134548014,17.75309787,174.35,174.31,15.12842599]
[1730134548268,17.75309787,174.34,174.31,15.12842599]
[1730134548717,14.3347,174.41,174.31,15.12842599]
[1730134548718,23.48869787,174.35,174.31,20.86532599]
[1730134549185,23.48869787,174.35,174.31,15.12842599]
[1730134549389,17.75309787,174.34,174.31,0.78622599]
[1730134549591,17.75309787,174.33,174.28,37.83499787]
[1730134549804,17.75309787,174.33,174.28,20.0819]
[1730134550016,17.75309787,174.32,174.28,20.0819]
[1730134550215,17.75309787,174.33,174.28,14.3443]
[1730134550411,17.75309787,174.33,174.28,32.09739787]
[1730134550609,17.75309787,174.34,174.28,37.83519787]
[1730134550819,17.75309787,174.33,174.28,37.83519787]
[1730134551321,23.48919787,174.34,174.28,37.83519787]
[1730134551508,5.7361,174.34,174.29,17.75309787]
[1730134551710,17.75309787,174.36,174.3,17.75309787]
[1730134551913,37.75309787,174.35,174.3,17.75309787]
[1730134552121,17.75309787,174.33,174.28,20.0821]
[1730134552429,20.0,174.35,174.27,0.78639329]
[1730134552430,17.75309787,174.31,174.27,0.78639329]
[1730134552672,17.75309787,174.29,174.25,14.3469]
[1730134552920,17.75309787,174.28,174.24,4.30365085]
[1730134553102,17.75309787,174.28,174.24,10.04285085]
[1730134553552,17.75309787,174.28,174.24,4.30365085]
[1730134553704,17.75309787,174.27,174.24,4.30365085]
[1730134553918,5.7385,174.26,174.24,4.30365085]
[1730134554804,23.49159787,174.26,174.24,4.30365085]
[1730134555000,17.75309787,174.25,174.24,4.30365085]
[1730134555216,37.75309787,174.25,174.24,4.30365085]
[1730134556013,43.49189787,174.25,174.24,4.30365085]
[1730134558024,67.08499574,174.25,174.24,4.30365085]
[1730134558230,49.33189787,174.25,174.24,4.30365085]
[1730134558402,20.0,174.24,174.17,0.78682849]
[1730134558720,17.75309787,174.2,174.17,0.78682849]
[1730134558936,17.75309787,174.19,174.17,0.78682849]
[1730134559430,17.75309787,174.18,174.17,0.78682849]
[1730134559612,17.75309787,174.18,174.12,17.75309787]
[1730134560002,17.75309787,174.16,174.1,32.11249787]
[1730134560231,37.75309787,174.15,174.1,17.75309787]
[1730134560401,43.49529787,174.15,174.1,17.75309787]
[1730134560603,25.7422,174.15,174.1,17.75309787]
[1730134561532,20.0,174.18,174.13,17.75309787]
[1730134561740,5.7405,174.2,174.16,17.75309787]
[1730134562234,23.49359787,174.2,174.15,17.75309787]
[1730134562618,5.7405,174.2,174.15,17.75309787]
[1730134564904,23.49359787,174.2,174.15,17.75309787]
[1730134565399,5.7405,174.2,174.15,17.75309787]
[1730134566403,17.75309787,174.2,174.15,17.75309787]
[1730134566604,17.75309787,174.18,174.13,23.94879787]
[1730134566810,17.75309787,174.16,174.12,6.52543965]
[1730134567012,0.2,174.23,174.12,6.52543965]
[1730134567217,17.75309787,174.17,174.12,6.52543965]
[1730134567834,23.49469787,174.17,174.12,6.52543965]
[1730134568026,17.75309787,174.19,174.13,17.75309787]
[1730134568246,32.10179787,174.24,174.15,17.75309787]
[1730134568247,20.0,174.2,174.15,17.75309787]
[1730134568437,17.75309787,174.18,174.12,38.63643752]
[1730134568747,17.75309787,174.17,174.12,20.88333965]
[1730134569221,17.75309787,174.17,174.12,20.1009]
[1730134569470,23.49469787,174.17,174.12,20.1009]
[1730134570126,17.75309787,174.16,174.12,14.3579]
[1730134570743,17.75309787,174.17,174.12,20.101]
[1730134571639,23.49459787,174.17,174.12,20.101]
[1730134572019,20.0,174.2,174.15,17.75309787]
[1730134572235,17.75309787,174.25,174.19,17.75309787]
[1730134572644,47.60879787,174.26,174.2,17.75309787]
[1730134572833,17.75309787,174.24,174.12,20.101]
[1730134573039,17.75309787,174.23,174.18,17.75309787]
[1730134573239,5.7398,174.22,174.18,17.75309787]
[1730134573427,5.7398,174.22,174.17,23.49439787]
[1730134574533,17.75309787,174.2,174.16,14.3543]
[1730134574749,17.75309787,174.19,174.14,6.52476805]
[1730134574916,17.75309787,174.17,174.14,0.78236805]
[1730134575121,17.75309787,174.16,174.14,0.78236805]
[1730134575440,17.75309787,174.15,174.14,0.78236805]
[1730134575623,17.75309787,174.16,174.14,0.78236805]
[1730134576151,20.0,174.17,174.14,0.78236805]
[1730134576868,25.7416,174.17,174.14,18.53546592]
[1730134577042,20.0,174.18,174.15,17.75309787]
[1730134577240,17.75309787,174.23,174.17,17.75309787]
[1730134577626,17.75309787,174.24,174.18,17.75309787]
[1730134577819,17.75309787,174.23,174.17,17.75309787]
[1730134578023,17.75309787,174.22,174.17,17.75309787]
[1730134578235,23.49319787,174.22,174.17,23.49439787]
[1730134578647,5.7394,174.24,174.18,17.75309787]
[1730134578857,14.3446,174.29,174.17,20.095]
[1730134578858,17.75309787,174.27,174.21,17.75309787]
[1730134579142,5.7378,174.28,174.23,17.75309787]
[1730134579440,17.75309787,174.27,174.22,17.75309787]
[1730134579642,5.7378,174.28,174.2,17.75309787]
[1730134579643,17.75309787,174.26,174.2,17.75309787]
[1730134580420,23.49169787,174.26,174.2,23.49329787]
[1730134580640,17.75309787,174.26,174.2,37.84459787]
[1730134581150,23.49169787,174.26,174.2,37.84459787]
[1730134583644,17.75309787,174.23,174.18,0.78216091]
[1730134583949,17.75309787,174.23,174.18,38.62925878]
[1730134584151,17.75309787,174.24,174.18,38.62925878]
[1730134585028,23.49249787,174.24,174.18,38.62925878]
[1730134585345,5.7394,174.24,174.19,17.75309787]
[1730134586152,17.75309787,174.27,174.21,17.75309787]
[1730134587262,5.7385,174.26,174.21,23.49309787]
[1730134587933,23.49159787,174.26,174.21,23.49309787]
[1730134588454,20.0,174.26,174.21,23.49309787]
[1730134589550,43.49189787,174.26,174.21,5.74]
[1730134589752,43.49189787,174.26,174.21,23.49309787]
[1730134590256,25.7388,174.26,174.21,17.75309787]
[1730134591260,25.7388,174.26,174.21,23.49319787]
[1730134592974,23.49059787,174.29,174.23,17.75309787]
[1730134593139,23.49059787,174.29,174.22,17.75309787]
[1730134593140,37.75309787,174.28,174.22,17.75309787]
[1730134593454,17.75309787,174.27,174.22,17.75309787]
[1730134594061,5.7382,174.27,174.24,17.75309787]
[1730134594355,5.7362,174.33,174.26,17.75309787]
[1730134594555,5.7362,174.33,174.3,17.75309787]
[1730134594759,5.7359,174.34,174.3,17.75309787]
[1730134595629,17.75309787,174.33,174.27,17.75309787]
[1730134595843,5.7365,174.32,174.27,17.75309787]
[1730134596647,5.7365,174.32,174.29,17.75309787]
[1730134596851,5.7365,174.32,174.28,17.75309787]
[1730134597150,23.48959787,174.32,174.26,17.75309787]
[1730134597450,17.75309787,174.29,174.24,6.52629695]
[1730134597653,17.75309787,174.28,174.24,0.78729695]
[1730134597885,23.49129787,174.28,174.24,0.78729695]
[1730134598460,17.75309787,174.25,174.24,0.78729695]
[1730134599359,17.75309787,174.25,174.2,17.75309787]
[1730134599541,23.49209787,174.25,174.19,37.84579787]
[1730134600065,17.75309787,174.24,174.19,37.84579787]
[1730134600867,17.75309787,174.26,174.2,17.75309787]
[1730134601367,17.75309787,174.26,174.19,20.0927]
[1730134601368,17.75309787,174.26,174.21,17.75309787]
[1730134601741,5.7388,174.25,174.21,17.75309787]
[1730134602963,37.75309787,174.24,174.19,20.0929]
[1730134603968,43.49229787,174.24,174.19,20.0929]
[1730134605066,17.75309787,174.22,174.18,0.78754046]
[1730134605278,25.7392,174.24,174.18,0.78754046]
[1730134605279,17.75309787,174.21,174.18,0.78754046]
[1730134605468,17.75309787,174.2,174.18,0.78754046]
[1730134605671,17.75309787,174.2,174.16,14.3542]
[1730134605847,17.75309787,174.2,174.15,5.7419]
[1730134606846,23.49379787,174.2,174.15,5.7419]
[1730134607551,17.75309787,174.19,174.14,23.49549787]
[1730134607761,17.75309787,174.15,174.08,12.90208998]
[1730134607953,17.75309787,174.14,174.09,17.75309787]
[1730134608180,17.75309787,174.13,174.08,45.01638785]
[1730134608362,17.75309787,174.13,174.08,39.27198785]
[1730134608745,17.75309787,174.13,174.08,15.14918998]
[1730134608949,23.49599787,174.13,174.08,20.89358998]
[1730134609558,23.49599787,174.13,174.08,38.64668785]
[1730134611453,23.49599787,174.13,174.08,20.89358998]
[1730134611655,17.75309787,174.14,174.09,17.75309787]
[1730134611871,23.49559787,174.14,174.09,17.75309787]
[1730134612073,23.49559787,174.14,174.08,38.64668785]
[1730134612379,5.7422,174.15,174.11,17.75309787]
[1730134613248,25.7418,174.16,174.11,17.75309787]
[1730134613452,43.49489787,174.16,174.11,17.75309787]
[1730134613759,17.75309787,174.15,174.1,37.85619787]
[1730134613961,20.0,174.18,174.14,17.75309787]
[1730134614155,20.0,174.19,174.15,17.75309787]
[1730134614473,17.75309787,174.23,174.17,17.75309787]
[1730134614660,23.49279787,174.23,174.18,17.75309787]
[1730134615838,5.7397,174.23,174.18,17.75309787]
[1730134615979,5.7397,174.23,174.16,14.3546]
[1730134615980,20.0,174.22,174.16,14.3546]
[1730134616154,17.75309787,174.2,174.16,14.3546]
[1730134616358,17.75309787,174.18,174.13,17.75309787]
[1730134616555,17.75309787,174.16,174.11,0.79213846]
[1730134616778,17.75309787,174.14,174.11,0.79213846]
[1730134616977,17.75309787,174.15,174.11,0.79213846]
[1730134617381,17.75309787,174.17,174.11,24.28853633]
[1730134617678,20.0,174.16,174.11,24.28853633]
[1730134618776,17.75309787,174.18,174.11,20.102]
[1730134618997,17.75309787,174.17,174.11,37.85509787]
[1730134620089,5.7405,174.2,174.11,37.85509787]
[1730134620090,17.75309787,174.18,174.12,17.75309787]
[1730134620382,20.0,174.18,174.13,17.75309787]
[1730134621174,5.7415,174.17,174.13,17.75309787]
[1730134622362,5.7411,174.18,174.13,17.75309787]
[1730134623287,5.7411,174.18,174.12,5.7429]
[1730134623288,23.49419787,174.18,174.12,23.49599787]
[1730134626448,17.75309787,174.16,174.11,14.3587]
[1730134627067,17.75309787,174.15,174.11,14.3587]
[1730134627391,17.75309787,174.15,174.07,6.0166]
[1730134627392,17.75309787,174.13,174.08,17.75309787]
[1730134627691,20.0,174.15,174.11,17.75309787]
[1730134628282,17.75309787,174.27,174.14,35.50619574]
[1730134628575,23.49149787,174.27,174.21,17.75309787]
[1730134628789,5.7379,174.28,174.24,17.75309787]
[1730134629281,5.7379,174.28,174.23,17.75309787]
[1730134629688,23.49099787,174.28,174.22,17.75309787]
[1730134629872,37.75309787,174.26,174.2,32.10429787]
[1730134630479,48.49873565,174.26,174.2,42.84993565]
[1730134630683,48.49873565,174.26,174.2,48.59043565]
[1730134631731,54.23743565,174.26,174.2,48.59043565]
[1730134632086,28.49873565,174.25,174.2,14.3512]
[1730134632393,28.49873565,174.25,174.19,28.49873565]
[1730134632593,48.49873565,174.23,174.17,35.03182255]
[1730134632890,48.49873565,174.22,174.17,0.7918869]
[1730134633100,48.49873565,174.2,174.14,28.49873565]
[1730134633310,48.49873565,174.2,174.08,12.3204087]
[1730134633311,28.49873565,174.15,174.1,28.49873565]
[1730134633488,20.0,174.14,174.09,48.60313565]
[1730134633836,54.24133565,174.14,174.09,14.3603]
[1730134633975,28.49873565,174.13,174.08,28.49873565]
[1730134634170,20.0,174.12,174.07,34.24343565]
[1730134634369,20.0,174.12,174.08,28.49873565]
[1730134635475,20.0,174.12,174.07,34.24343565]
[1730134635676,48.49873565,174.12,174.07,34.24343565]
[1730134635966,20.0,174.12,174.07,34.24343565]
[1730134636393,20.0,174.16,174.11,28.49873565]
[1730134636599,20.0,174.16,174.13,28.49873565]
[1730134636891,25.7411,174.18,174.13,28.49873565]
[1730134637593,25.7411,174.18,174.14,28.49873565]
[1730134637974,25.7411,174.18,174.13,28.49873565]
[1730134639190,5.7411,174.18,174.13,28.49873565]
[1730134639875,5.7411,174.18,174.15,28.49873565]
[1730134640285,5.7411,174.18,174.14,28.49873565]
[1730134640795,28.49873565,174.2,174.14,28.49873565]
[1730134640997,25.7408,174.19,174.14,28.49873565]
[1730134641382,25.7408,174.19,174.12,28.49873565]
[1730134641583,28.49873565,174.15,174.1,0.76551708]
[1730134641810,28.49873565,174.14,174.1,0.76551708]
[1730134642119,20.0,174.16,174.07,28.49873565]
[1730134642120,28.49873565,174.12,174.07,28.49873565]
[1730134642583,28.49873565,174.12,174.06,5.7451]
[1730134642584,28.49873565,174.12,174.06,34.24383565]
[1730134643093,34.24203565,174.12,174.06,34.24383565]
[1730134643494,34.24203565,174.12,174.07,28.49873565]
[1730134644622,20.0,174.11,174.06,42.86153565]
[1730134644912,28.49873565,174.1,174.05,28.49873565]
[1730134645217,25.7436,174.11,174.06,28.49873565]
[1730134645722,5.7436,174.11,174.06,28.49873565]
[1730134647705,20.0,174.11,174.06,28.49873565]
[1730134649214,20.0,174.11,174.07,28.49873565]
[1730134649446,5.7418,174.16,174.1,28.49873565]
[1730134649620,5.7418,174.16,174.12,28.49873565]
[1730134650724,5.7418,174.16,174.11,28.49873565]
[1730134651014,20.0,174.15,174.11,28.49873565]
[1730134651422,28.49873565,174.2,174.14,28.49873565]
[1730134651914,21.4398,174.21,174.07,6.1017]
[1730134651915,5.7408,174.19,174.15,28.49873565]
[1730134652914,0.1,174.17,174.07,20.1068]
[1730134653216,0.1,174.17,174.16,28.49873565]
[1730134653424,0.1,174.19,174.16,28.49873565]
[1730134653595,0.2,174.19,174.18,28.49873565]
[1730134654013,0.1,174.18,174.17,28.49873565]
[1730134654418,0.1,174.2,174.17,28.49873565]
[1730134654723,0.2,174.22,174.19,28.49873565]
[1730134654903,0.2,174.19,174.18,28.49873565]
[1730134655289,16.1572,174.25,174.17,28.49873565]
[1730134655290,0.2,174.18,174.17,28.49873565]
[1730134655707,5.7392,174.24,174.09,0.1]
[1730134655904,28.49873565,174.23,174.17,28.49873565]
[1730134656215,5.7392,174.24,174.16,28.49873565]
[1730134656216,48.49873565,174.22,174.16,28.49873565]
[1730134656513,37.81982575,174.22,174.16,17.81982575]
[1730134657002,5.7401,174.21,174.16,17.81982575]
[1730134657404,37.81982575,174.2,174.14,17.81982575]
[1730134657593,17.81982575,174.19,174.14,17.81982575]
[1730134657800,17.81982575,174.19,174.13,17.81982575]
[1730134658019,17.81982575,174.17,174.11,17.81982575]
[1730134658323,17.81982575,174.16,174.1,17.81982575]
[1730134658507,17.81982575,174.15,174.09,17.81982575]
[1730134659220,20.0,174.2,174.08,17.81982575]
[1730134659221,23.56232575,174.14,174.08,17.81982575]
[1730134659408,17.81982575,174.13,174.08,17.81982575]
[1730134659721,5.7425,174.14,174.06,21.2904]
[1730134659722,5.7425,174.14,174.09,17.81982575]
[1730134659906,5.7425,174.14,174.1,17.81982575]
[1730134660409,5.7421,174.15,174.1,17.81982575]
[1730134660622,48.53088133,174.14,174.09,28.53088133]
[1730134661118,20.0,174.14,174.1,28.53088133]
[1730134661702,25.7426,174.14,174.1,28.53088133]
[1730134662414,25.7426,174.14,174.09,28.53088133]
[1730134663198,54.27348133,174.14,174.08,28.53088133]
[1730134664359,28.53088133,174.13,174.08,28.53088133]
[1730134664507,28.53088133,174.13,174.07,28.53088133]
[1730134665121,25.7426,174.14,174.06,0.72003599]
[1730134665122,28.53088133,174.11,174.06,0.72003599]
[1730134666204,5.7428,174.13,174.06,0.72003599]
[1730134666205,20.0998,174.13,174.06,0.72003599]
[1730134666407,28.53088133,174.1,174.06,0.72003599]
[1730134667229,20.0998,174.13,174.06,0.72003599]
[1730134667230,28.53088133,174.09,174.06,0.72003599]
[1730134667408,28.53088133,174.09,174.03,28.53088133]
[1730134667718,5.7444,174.08,174.03,28.53088133]
[1730134668130,34.27528133,174.08,174.03,28.53088133]
[1730134668424,5.7444,174.08,174.03,28.53088133]
[1730134669518,34.27528133,174.08,174.03,28.53088133]
[1730134669701,20.0,174.08,174.03,28.53088133]
[1730134671012,20.0,174.09,174.05,28.53088133]
[1730134671202,25.7441,174.09,174.05,28.53088133]
[1730134671523,25.7428,174.13,174.08,28.53088133]
[1730134671705,5.7428,174.13,174.08,28.53088133]
[1730134671905,5.7428,174.13,173.98,12.35268706]
[1730134671906,28.53088133,174.1,174.01,0.72026429]
[1730134672223,70.0,174.12,174.01,0.72026429]
[1730134672224,28.53088133,174.09,174.04,28.53088133]
[1730134672518,28.53088133,174.09,174.01,0.72026429]
[1730134672519,28.53088133,174.09,174.03,28.53088133]
[1730134673408,5.7444,174.08,174.03,28.53088133]
[1730134674232,34.27528133,174.08,174.03,28.53088133]
[1730134674532,5.7444,174.08,174.03,28.53088133]
[1730134675431,5.7444,174.08,174.04,28.53088133]
[1730134675932,34.27528133,174.08,174.03,28.53088133]
[1730134676138,48.53088133,174.07,174.02,28.53088133]
[1730134676313,48.53088133,174.07,174.01,29.25114562]
[1730134676314,28.53088133,174.07,174.01,29.25114562]
[1730134676508,28.53088133,174.07,174.02,28.53088133]
[1730134676806,104.27528133,174.08,174.03,28.53088133]
[1730134677061,48.53088133,174.07,174.02,28.53088133]
[1730134677524,5.7451,174.06,174.03,28.53088133]
[1730134678225,25.7448,174.07,174.03,28.53088133]
[1730134678417,54.27568133,174.07,174.01,28.53088133]
[1730134678730,5.7448,174.07,174.03,28.53088133]
[1730134678904,5.7448,174.07,174.04,28.53088133]
[1730134679276,20.0,174.08,174.04,28.53088133]
[1730134679429,20.0,174.08,174.05,28.53088133]
[1730134680131,20.0,174.09,174.05,28.53088133]
[1730134680329,20.0,174.09,173.99,0.72033941]
[1730134680330,48.53088133,174.08,174.02,28.53088133]
[1730134680630,28.53088133,174.07,174.01,28.53088133]
[1730134681126,34.27588133,174.07,174.01,28.53088133]
[1730134681828,28.53088133,174.06,174.01,28.53088133]
[1730134682032,20.0,174.05,174.0,28.53088133]
[1730134682531,37.85269193,174.05,173.99,18.57303134]
[1730134682732,20.0,174.05,174.01,17.85269193]
[1730134683327,5.7458,174.04,174.01,17.85269193]
[1730134684017,5.7455,174.05,174.02,17.85269193]
[1730134684217,5.7455,174.05,174.03,17.85269193]
[1730134685021,5.7455,174.05,174.02,17.85269193]
[1730134685729,20.0,174.05,173.99,0.72033941]
[1730134685913,37.85269193,174.05,174.0,17.85269193]
[1730134686111,37.85269193,174.05,173.99,0.72033941]
[1730134686112,20.0,174.03,173.99,18.57303134]
[1730134687122,20.0,174.04,173.99,18.57303134]
[1730134688006,5.7461,174.03,173.99,18.57303134]
[1730134688210,5.7461,174.03,174.0,17.85269193]
[1730134689436,5.7461,174.03,173.99,18.57303134]
[1730134690017,23.59879193,174.03,173.99,0.72033941]
[1730134690220,20.0,174.02,173.98,17.85269193]
[1730134690419,20.0,174.02,173.97,17.85269193]
[1730134691341,25.7467,174.02,173.97,17.85269193]
[1730134692036,25.7467,174.02,173.98,17.85269193]
[1730134692346,25.7467,174.02,173.99,17.85269193]
[1730134692639,5.7467,174.02,173.98,17.85269193]
[1730134693039,5.7458,174.04,174.01,17.85269193]
[1730134693250,75.7448,174.07,174.02,17.85269193]
[1730134693610,5.7448,174.07,174.02,17.85269193]
[1730134694446,20.0,174.06,174.02,17.85269193]
[1730134696743,5.7454,174.05,174.02,17.85269193]
[1730134697420,5.7454,174.05,174.0,17.85269193]
[1730134697626,93.59809193,174.05,173.99,17.85269193]
[1730134699025,93.59809193,174.05,174.0,17.85269193]
[1730134700933,5.7454,174.05,174.01,17.85269193]
[1730134701343,5.7454,174.05,174.02,17.85269193]
[1730134701550,24.18239193,174.1,174.04,17.85269193]
[1730134701742,93.59619193,174.11,174.05,17.85269193]
[1730134702147,17.85269193,174.1,174.04,17.85269193]
[1730134702352,17.85269193,174.07,174.01,17.85269193]
[1730134702569,17.85269193,174.04,173.99,0.76052925]
[1730134703242,17.85269193,174.02,173.99,0.76052925]
[1730134703455,17.85269193,174.03,173.99,0.76052925]
[1730134703653,37.85269193,174.02,173.99,0.76052925]
[1730134703847,17.85269193,174.01,173.99,0.76052925]
[1730134704526,23.59949193,174.01,173.99,0.76052925]
[1730134705856,5.7468,174.01,173.99,0.76052925]
[1730134706029,43.59919193,174.02,173.99,0.76052925]
[1730134706226,25.7462,174.03,173.99,18.61322118]
[1730134706959,43.59889193,174.03,173.97,17.85269193]
[1730134707459,43.59889193,174.03,173.98,17.85269193]
[1730134707658,25.7462,174.03,173.98,17.85269193]
[1730134709053,17.85269193,174.01,173.96,0.5795313]
[1730134710140,23.59959193,174.01,173.96,18.43222323]
[1730134710337,20.0,174.03,173.98,17.85269193]
[1730134710657,5.7465,174.02,173.98,17.85269193]
[1730134711030,5.7465,174.02,173.97,17.85269193]
[1730134711227,23.59919193,174.02,173.96,18.43222323]
[1730134711430,23.59959193,174.01,173.96,18.43222323]
[1730134712157,23.59959193,174.01,173.96,0.5795313]
[1730134712158,17.85269193,173.98,173.96,0.5795313]
[1730134713118,17.85269193,173.99,173.96,0.5795313]
[1730134714739,17.85269193,174.0,173.96,0.5795313]
[1730134714952,37.85269193,173.99,173.96,0.5795313]
[1730134715255,17.85269193,174.05,173.98,17.85269193]
[1730134715456,109.37579193,174.06,174.01,17.85269193]
[1730134716273,109.37579193,174.06,174.0,17.85269193]
[1730134716771,20.0,174.05,174.0,17.85269193]
[1730134716978,109.37579193,174.06,174.0,17.85269193]
[1730134718062,20.0,174.05,174.0,17.85269193]
[1730134718450,15.778,174.06,174.01,17.85269193]
[1730134718647,70.0,174.08,173.97,17.85269193]
[1730134718648,17.85269193,174.08,174.03,17.85269193]
[1730134718879,17.85269193,174.08,174.02,17.85269193]
[1730134719081,17.85269193,174.08,174.03,17.85269193]
[1730134719253,17.85269193,174.09,174.03,17.85269193]
[1730134719569,17.85269193,174.09,174.04,17.85269193]
[1730134720686,20.0,174.08,174.04,17.85269193]
[1730134721460,20.0,174.08,174.03,17.85269193]
[1730134721971,37.85269193,174.08,174.02,17.85269193]
[1730134722681,17.85269193,174.05,173.99,17.85269193]
[1730134724055,17.85269193,174.05,174.0,17.85269193]
[1730134726263,17.85269193,174.04,173.98,18.70447715]
[1730134726494,17.85269193,174.03,173.98,18.70447715]
[1730134726928,5.7455,174.05,173.99,17.85269193]
[1730134727087,17.85269193,174.04,173.99,17.85269193]
[1730134727579,17.85269193,174.04,173.98,17.85269193]
[1730134727978,17.85269193,174.03,173.98,17.85269193]
[1730134729281,17.85269193,174.02,173.97,17.85269193]
[1730134731293,17.85269193,174.02,173.96,18.43222323]
[1730134733180,17.85269193,174.01,173.96,18.43222323]
[1730134733598,17.85269193,174.0,173.96,0.5795313]
[1730134733794,17.85269193,174.02,173.97,17.85269193]
[1730134733973,5.7461,174.03,173.98,17.85269193]
[1730134733974,23.59879193,174.03,173.98,17.85269193]
[1730134734174,17.85269193,174.01,173.96,18.43222323]
[1730134734673,37.85269193,174.02,173.96,18.43222323]
[1730134734896,20.0,174.02,173.98,17.85269193]
[1730134735090,21.0938,174.04,173.99,17.85269193]
[1730134735411,38.94649193,174.04,173.99,17.85269193]
[1730134735903,23.59829193,174.05,174.0,17.85269193]
[1730134736298,17.85269193,174.04,173.99,17.85269193]
[1730134737088,17.85269193,174.05,174.0,17.85269193]
[1730134739523,17.85269193,174.05,173.96,0.5795313]
[1730134739524,90.0,173.97,173.96,0.5795313]
[1730134739720,131.54538386,173.97,173.96,0.5795313]
[1730134740213,131.45348386,173.97,173.96,0.5795313]
[1730134740792,131.45348386,173.97,173.82,24.29689193]
[1730134740793,70.0,173.93,173.82,24.29689193]
[1730134741014,17.85269193,173.89,173.82,24.29689193]
[1730134741803,17.85269193,173.87,173.82,6.4442]
[1730134742414,17.85269193,173.91,173.85,17.85269193]
[1730134742714,43.60269193,173.92,173.85,17.85269193]
[1730134742903,17.85269193,173.91,173.85,17.85269193]
[1730134743310,17.85269193,173.93,173.87,17.85269193]
[1730134744613,17.85269193,173.94,173.88,17.85269193]
[1730134744824,17.85269193,173.95,173.89,17.85269193]
[1730134745010,70.0,173.98,173.89,17.85269193]
[1730134745211,23.59969193,174.01,173.96,17.85269193]
[1730134745402,5.84,173.97,173.96,17.85269193]
[1730134745800,5.84,173.97,173.95,17.85269193]
[1730134746306,5.747,174.01,173.96,17.85269193]
[1730134746498,20.0,174.01,173.96,17.85269193]
[1730134746705,20.0,174.01,173.9,22.8194]
[1730134746706,17.85269193,174.0,173.94,17.85269193]
[1730134746922,17.85269193,173.96,173.9,40.57209193]
[1730134747610,23.60109193,173.96,173.9,41.43486291]
[1730134748514,34.34134438,173.96,173.9,52.17511536]
[1730134750123,28.59294438,173.99,173.93,28.59294438]
[1730134750346,28.59294438,174.02,173.96,28.59294438]
[1730134750705,28.59294438,174.02,173.9,22.7194]
[1730134750706,70.0,174.02,173.92,28.59294438]
[1730134751103,28.59294438,173.98,173.92,28.59294438]
[1730134751406,28.59294438,174.01,173.95,28.59294438]
[1730134751608,28.59294438,174.02,173.96,28.59294438]
[1730134752218,34.33934438,174.02,173.97,28.59294438]
[1730134752723,34.33904438,174.03,173.97,28.59294438]
[1730134752920,34.33904438,174.03,173.98,28.59294438]
[1730134753523,34.33904438,174.03,173.97,28.59294438]
[1730134755579,28.59294438,173.98,173.93,29.4555406]
[1730134755719,28.59294438,173.98,173.93,0.86259622]
[1730134756630,28.59294438,173.96,173.93,0.86259622]
[1730134757224,28.59294438,173.97,173.93,0.86259622]
[1730134758146,28.59294438,173.96,173.93,0.86259622]
[1730134758423,28.59294438,173.97,173.93,0.86259622]
[1730134759125,28.59294438,173.98,173.93,0.86259622]
[1730134759419,34.34094438,173.98,173.93,0.86259622]
[1730134759644,28.59294438,173.98,173.93,29.4555406]
[1730134761209,28.59294438,174.0,173.94,28.59294438]
[1730134761508,28.59294438,174.0,173.95,28.59294438]
[1730134762636,34.34004438,174.01,173.95,28.59294438]
[1730134762852,28.59294438,174.03,173.97,28.59294438]
[1730134763145,28.59294438,174.04,173.98,28.59294438]
[1730134763821,28.59294438,174.04,173.99,28.59294438]
[1730134764225,34.33844438,174.05,174.0,28.59294438]
[1730134764627,34.33844438,174.05,173.94,0.1]
[1730134764628,34.33844438,174.05,173.99,28.59294438]
[1730134764840,28.59294438,174.04,173.98,28.59294438]
[1730134765419,34.33874438,174.04,173.98,28.59294438]
[1730134767120,44.71704438,174.08,174.02,28.59294438]
[1730134767622,28.59294438,174.06,174.01,28.59294438]
[1730134768040,48.59294438,174.07,174.01,28.59294438]